[Event "Late-Titled-Tuesday-Blitz-October-03-2023"]
[Site "Chess.com"]
[Date "2023.10.03"]
[Round "4"]
[White "WindWhistler11"]
[Black "Sacbutt"]
[Result "1-0"]
[WhiteElo "2452"]
[BlackElo "2255"]
[TimeControl "180+1"]
[EndTime "14:37:55 PDT"]
[Termination "WindWhistler11 won on time"]

1. Nf3 {[%clk 0:03:00.9]} 1... e6 {[%clk 0:02:57.6]} 2. g3 {[%clk 0:02:55.7]}
2... d5 {[%clk 0:02:57.7]} 3. d3 {[%clk 0:02:56.5]} 3... Nf6 {[%clk 0:02:58.3]}
4. Nbd2 {[%clk 0:02:57.2]} 4... c5 {[%clk 0:02:57.2]} 5. e4 {[%clk 0:02:57.8]}
5... Nc6 {[%clk 0:02:57.3]} 6. Bg2 {[%clk 0:02:58]} 6... Be7 {[%clk 0:02:56.1]}
7. O-O {[%clk 0:02:58.5]} 7... O-O {[%clk 0:02:56.1]} 8. e5 {[%clk 0:02:58.8]}
8... Nd7 {[%clk 0:02:55.5]} 9. Re1 {[%clk 0:02:59.7]} 9... Qc7 {[%clk
0:02:55.4]} 10. Qe2 {[%clk 0:02:58.9]} 10... b5 {[%clk 0:02:54.8]} 11. h4 {[%clk
0:02:57.4]} 11... a5 {[%clk 0:02:55.1]} 12. Nf1 {[%clk 0:02:57.4]} 12... Bb7
{[%clk 0:02:53.4]} 13. Bf4 {[%clk 0:02:56.1]} 13... a4 {[%clk 0:02:50.7]} 14. a3
{[%clk 0:02:54.4]} 14... b4 {[%clk 0:02:44.3]} 15. h5 {[%clk 0:02:54.7]} 15...
h6 {[%clk 0:02:42.9]} 16. g4 {[%clk 0:02:38.4]} 16... Nd4 {[%clk 0:02:19.7]} 17.
Nxd4 {[%clk 0:02:28.2]} 17... cxd4 {[%clk 0:02:20.6]} 18. Qd2 {[%clk 0:02:19.6]}
18... bxa3 {[%clk 0:02:14.2]} 19. bxa3 {[%clk 0:02:19.1]} 19... Rfc8 {[%clk
0:02:10.1]} 20. Re2 {[%clk 0:02:13]} 20... Qc3 {[%clk 0:02:07.7]} 21. Qc1 {[%clk
0:02:12]} 21... Ba6 {[%clk 0:01:56.2]} 22. g5 {[%clk 0:01:51.9]} 22... hxg5
{[%clk 0:01:48]} 23. Bd2 {[%clk 0:01:49.8]} 23... Qc7 {[%clk 0:01:43.7]} 24.
Bxg5 {[%clk 0:01:49.3]} 24... Bf8 {[%clk 0:01:15.2]} 25. Qf4 {[%clk 0:01:40.1]}
25... Qc3 {[%clk 0:01:01.5]} 26. Rd1 {[%clk 0:01:30.6]} 26... Qxa3 {[%clk
0:00:58.8]} 27. h6 {[%clk 0:01:27.4]} 27... gxh6 {[%clk 0:00:57]} 28. Bxh6
{[%clk 0:01:27]} 28... Bxh6 {[%clk 0:00:57.4]} 29. Qxh6 {[%clk 0:01:26.8]} 29...
Qf8 {[%clk 0:00:58]} 30. Qh4 {[%clk 0:01:20.1]} 30... a3 {[%clk 0:00:50.2]} 31.
Qxd4 {[%clk 0:01:13.8]} 31... Qg7 {[%clk 0:00:27.8]} 32. Re3 {[%clk 0:01:05]}
32... Nf8 {[%clk 0:00:27.9]} 33. Ng3 {[%clk 0:01:00.8]} 33... Ng6 {[%clk
0:00:24.4]} 34. Nh5 {[%clk 0:00:59.8]} 34... Qh6 {[%clk 0:00:15.2]} 35. Nf6+
{[%clk 0:01:00.2]} 35... Kf8 {[%clk 0:00:15]} 36. Qb4+ {[%clk 0:00:56.8]} 36...
Kg7 {[%clk 0:00:10.5]} 37. Rh3 {[%clk 0:00:55.2]} 37... Nxe5 {[%clk 0:00:03.4]}
38. Rxh6 {[%clk 0:00:52.8]} 38... Kxh6 {[%clk 0:00:04.3]} 39. Qf4+ {[%clk
0:00:50.2]} 1-0

[Event "Late-Titled-Tuesday-Blitz-October-03-2023"]
[Site "Chess.com"]
[Date "2023.10.03"]
[Round "4"]
[White "adricalderon8"]
[Black "Let_it_be_1"]
[Result "1/2-1/2"]
[WhiteElo "2511"]
[BlackElo "2634"]
[TimeControl "180+1"]
[EndTime "14:37:59 PDT"]
[Termination "Game drawn - insufficient material"]

1. d4 {[%clk 0:03:00.9]} 1... d5 {[%clk 0:02:59.2]} 2. c4 {[%clk 0:03:00.6]}
2... e6 {[%clk 0:02:59.4]} 3. Nf3 {[%clk 0:03:00.6]} 3... Nf6 {[%clk 0:02:59.3]}
4. Nc3 {[%clk 0:02:59.1]} 4... Be7 {[%clk 0:02:59.3]} 5. g3 {[%clk 0:02:56.6]}
5... O-O {[%clk 0:02:59.1]} 6. Bg2 {[%clk 0:02:56.9]} 6... dxc4 {[%clk
0:02:59.9]} 7. Ne5 {[%clk 0:02:54.3]} 7... Nc6 {[%clk 0:02:59.4]} 8. Bxc6 {[%clk
0:02:44.3]} 8... bxc6 {[%clk 0:03:00.3]} 9. Nxc6 {[%clk 0:02:44.7]} 9... Qe8
{[%clk 0:03:00.2]} 10. Nxe7+ {[%clk 0:02:45.6]} 10... Qxe7 {[%clk 0:03:01]} 11.
O-O {[%clk 0:02:45.5]} 11... Rd8 {[%clk 0:02:55.7]} 12. Qa4 {[%clk 0:02:32.5]}
12... Rxd4 {[%clk 0:02:52.3]} 13. Be3 {[%clk 0:02:32.8]} 13... Rd8 {[%clk
0:02:46.9]} 14. Qxc4 {[%clk 0:02:32.3]} 14... Bb7 {[%clk 0:02:44.3]} 15. Rfd1
{[%clk 0:02:31.4]} 15... Nd5 {[%clk 0:02:40.2]} 16. Bc5 {[%clk 0:02:27.2]} 16...
Qf6 {[%clk 0:02:29.5]} 17. e4 {[%clk 0:02:26.7]} 17... Nxc3 {[%clk 0:02:28.4]}
18. bxc3 {[%clk 0:02:26.3]} 18... Qf3 {[%clk 0:02:23.3]} 19. Re1 {[%clk
0:02:17.4]} 19... Rd3 {[%clk 0:02:12.4]} 20. Rab1 {[%clk 0:01:53.1]} 20... Rxc3
{[%clk 0:02:05.4]} 21. Qb5 {[%clk 0:01:53.4]} 21... Rxc5 {[%clk 0:01:37.3]} 22.
Qxb7 {[%clk 0:01:48]} 22... Rf8 {[%clk 0:01:34]} 23. Qxa7 {[%clk 0:01:48.1]}
23... Rc2 {[%clk 0:01:33.1]} 24. Ra1 {[%clk 0:01:44.1]} 24... h5 {[%clk
0:01:31.5]} 25. h4 {[%clk 0:01:43.6]} 25... Rd8 {[%clk 0:01:28.8]} 26. Qe3
{[%clk 0:01:42.6]} 26... Qxe3 {[%clk 0:01:24.9]} 27. Rxe3 {[%clk 0:01:42.7]}
27... Rdd2 {[%clk 0:01:25.6]} 28. Rf3 {[%clk 0:01:43]} 28... Rxa2 {[%clk
0:01:25.6]} 29. Rc1 {[%clk 0:01:43.4]} 29... Rac2 {[%clk 0:01:24]} 30. Rc3
{[%clk 0:01:43.6]} 30... Rxc1+ {[%clk 0:01:20.7]} 31. Rxc1 {[%clk 0:01:43.5]}
31... Rd7 {[%clk 0:01:21.2]} 32. Kg2 {[%clk 0:01:37.9]} 32... e5 {[%clk
0:01:20.9]} 33. f4 {[%clk 0:01:33.5]} 33... exf4 {[%clk 0:01:19.4]} 34. gxf4
{[%clk 0:01:33.7]} 34... f6 {[%clk 0:01:18.5]} 35. Rc5 {[%clk 0:01:30.2]} 35...
g6 {[%clk 0:01:18.6]} 36. f5 {[%clk 0:01:30.7]} 36... Kf7 {[%clk 0:01:16.2]} 37.
fxg6+ {[%clk 0:01:29.6]} 37... Kxg6 {[%clk 0:01:16.5]} 38. Kf3 {[%clk
0:01:30.4]} 38... Rd3+ {[%clk 0:01:04.7]} 39. Kf4 {[%clk 0:01:30.5]} 39... Rh3
{[%clk 0:01:04.6]} 40. Rxc7 {[%clk 0:01:30.6]} 40... Rxh4+ {[%clk 0:01:04.9]}
41. Kf3 {[%clk 0:01:31.2]} 41... Rh3+ {[%clk 0:01:05.2]} 42. Kf4 {[%clk
0:01:31.5]} 42... Rh4+ {[%clk 0:01:03.3]} 43. Kf3 {[%clk 0:01:31.9]} 43... Rh1
{[%clk 0:01:02.5]} 44. Rc8 {[%clk 0:01:31.6]} 44... Rf1+ {[%clk 0:01:00.6]} 45.
Kg3 {[%clk 0:01:31.6]} 45... Kf7 {[%clk 0:00:58.2]} 46. Rc5 {[%clk 0:01:30.1]}
46... Rh1 {[%clk 0:00:57.4]} 47. Rc6 {[%clk 0:01:28.2]} 47... h4+ {[%clk
0:00:55]} 48. Kf4 {[%clk 0:01:27.6]} 48... Rg1 {[%clk 0:00:50.3]} 49. Rc7+
{[%clk 0:01:26.4]} 49... Kg6 {[%clk 0:00:50]} 50. Rc3 {[%clk 0:01:26.1]} 50...
Kh5 {[%clk 0:00:46]} 51. Rc5+ {[%clk 0:01:25.3]} 51... Rg5 {[%clk 0:00:46.1]}
52. Rc8 {[%clk 0:01:24]} 52... Rg4+ {[%clk 0:00:44.9]} 53. Kf5 {[%clk
0:01:20.5]} 53... Rg6 {[%clk 0:00:40.4]} 54. Rh8+ {[%clk 0:01:18.1]} 54... Rh6
{[%clk 0:00:40.2]} 55. Rxh6+ {[%clk 0:01:06.8]} 55... Kxh6 {[%clk 0:00:39.3]}
56. Kg4 {[%clk 0:01:02.8]} 56... h3 {[%clk 0:00:32.7]} 57. Kxh3 {[%clk 0:01:02]}
57... Kg5 {[%clk 0:00:33.6]} 58. Kg3 {[%clk 0:01:02.4]} 58... f5 {[%clk
0:00:34]} 59. exf5 {[%clk 0:01:02]} 59... Kxf5 {[%clk 0:00:34]} 1/2-1/2

[Event "Late-Titled-Tuesday-Blitz-October-03-2023"]
[Site "Chess.com"]
[Date "2023.10.03"]
[Round "4"]
[White "nitpicker"]
[Black "Joel1285"]
[Result "1-0"]
[WhiteElo "2233"]
[BlackElo "1905"]
[TimeControl "180+1"]
[EndTime "14:38:00 PDT"]
[Termination "nitpicker won on time"]

1. d4 {[%clk 0:03:00.9]} 1... Nf6 {[%clk 0:02:59.2]} 2. c4 {[%clk 0:02:53]} 2...
e6 {[%clk 0:02:58.4]} 3. g3 {[%clk 0:02:52.6]} 3... Bb4+ {[%clk 0:02:54.5]} 4.
Bd2 {[%clk 0:02:52]} 4... Bxd2+ {[%clk 0:02:54.6]} 5. Qxd2 {[%clk 0:02:51.2]}
5... O-O {[%clk 0:02:54.6]} 6. Bg2 {[%clk 0:02:50.8]} 6... d6 {[%clk 0:02:54.4]}
7. Nc3 {[%clk 0:02:46.8]} 7... Nbd7 {[%clk 0:02:54.4]} 8. Nf3 {[%clk 0:02:46.6]}
8... Re8 {[%clk 0:02:54.1]} 9. O-O {[%clk 0:02:46.4]} 9... e5 {[%clk 0:02:53.8]}
10. e4 {[%clk 0:02:42.4]} 10... c6 {[%clk 0:02:46.4]} 11. Rfe1 {[%clk
0:02:34.8]} 11... Qe7 {[%clk 0:02:46.1]} 12. Rad1 {[%clk 0:02:33]} 12... Nf8
{[%clk 0:02:45.4]} 13. h3 {[%clk 0:02:21.7]} 13... Bd7 {[%clk 0:02:33.2]} 14. c5
{[%clk 0:02:02.4]} 14... exd4 {[%clk 0:02:16]} 15. cxd6 {[%clk 0:01:55.3]} 15...
Qxd6 {[%clk 0:02:16.9]} 16. e5 {[%clk 0:01:53.3]} 16... Qb4 {[%clk 0:02:10.7]}
17. exf6 {[%clk 0:01:31.1]} 17... dxc3 {[%clk 0:02:10.1]} 18. bxc3 {[%clk
0:01:31.6]} 18... Qc5 {[%clk 0:01:09.5]} 19. fxg7 {[%clk 0:01:28.1]} 19... Kxg7
{[%clk 0:01:10]} 20. Nd4 {[%clk 0:01:23.8]} 20... Rxe1+ {[%clk 0:00:55.8]} 21.
Rxe1 {[%clk 0:01:23.7]} 21... Re8 {[%clk 0:00:55.7]} 22. Rxe8 {[%clk 0:01:10.7]}
22... Bxe8 {[%clk 0:00:56.6]} 23. Qe3 {[%clk 0:01:08]} 23... Bd7 {[%clk
0:00:26.4]} 24. g4 {[%clk 0:01:08.2]} 24... Kh8 {[%clk 0:00:20.4]} 25. Qf4
{[%clk 0:01:05.9]} 25... Qe7 {[%clk 0:00:15.2]} 26. Be4 {[%clk 0:01:00.4]} 26...
Ng6 {[%clk 0:00:12.8]} 27. Qb8+ {[%clk 0:00:51.2]} 27... Kg7 {[%clk 0:00:12.2]}
28. Bxg6 {[%clk 0:00:42]} 28... hxg6 {[%clk 0:00:09.3]} 29. Qxb7 {[%clk
0:00:42.3]} 29... Qe1+ {[%clk 0:00:07.6]} 30. Kg2 {[%clk 0:00:39.9]} 30... Qe4+
{[%clk 0:00:07.5]} 31. Kf1 {[%clk 0:00:37.4]} 31... Qh1+ {[%clk 0:00:04.1]} 32.
Ke2 {[%clk 0:00:38]} 32... Qe4+ {[%clk 0:00:04.3]} 33. Kd2 {[%clk 0:00:36.5]}
33... Be6 {[%clk 0:00:02.8]} 34. Nxe6+ {[%clk 0:00:30.7]} 34... Qxe6 {[%clk
0:00:02.1]} 35. Qxa7 {[%clk 0:00:30.2]} 1-0

[Event "Late-Titled-Tuesday-Blitz-October-03-2023"]
[Site "Chess.com"]
[Date "2023.10.03"]
[Round "4"]
[White "rikchessmx"]
[Black "ural58"]
[Result "0-1"]
[WhiteElo "2334"]
[BlackElo "2507"]
[TimeControl "180+1"]
[EndTime "14:38:09 PDT"]
[Termination "ural58 won by checkmate"]

1. e4 {[%clk 0:03:00.9]} 1... d5 {[%clk 0:02:59.4]} 2. exd5 {[%clk 0:03:00.3]}
2... Qxd5 {[%clk 0:02:59.4]} 3. Nc3 {[%clk 0:03:00.5]} 3... Qd6 {[%clk
0:02:59.5]} 4. Nf3 {[%clk 0:03:00.7]} 4... c6 {[%clk 0:02:53.9]} 5. Bc4 {[%clk
0:03:00.4]} 5... Be6 {[%clk 0:02:52.9]} 6. Qe2 {[%clk 0:02:58.2]} 6... Bxc4
{[%clk 0:02:52]} 7. Qxc4 {[%clk 0:02:57.8]} 7... Nf6 {[%clk 0:02:50.5]} 8. O-O
{[%clk 0:02:56.7]} 8... g6 {[%clk 0:02:50.5]} 9. d3 {[%clk 0:02:56.1]} 9... Bg7
{[%clk 0:02:50.6]} 10. Bf4 {[%clk 0:02:55.6]} 10... Qd8 {[%clk 0:02:50.7]} 11.
Qb3 {[%clk 0:02:52.7]} 11... b6 {[%clk 0:02:48.9]} 12. Ne5 {[%clk 0:02:49.1]}
12... O-O {[%clk 0:02:48]} 13. h3 {[%clk 0:02:48.9]} 13... e6 {[%clk 0:02:45.2]}
14. Rad1 {[%clk 0:02:42.7]} 14... Nfd7 {[%clk 0:02:42.8]} 15. Rfe1 {[%clk
0:02:37.3]} 15... Nxe5 {[%clk 0:02:18.7]} 16. Bxe5 {[%clk 0:02:35.7]} 16... Bxe5
{[%clk 0:02:17.1]} 17. Rxe5 {[%clk 0:02:34.9]} 17... Nd7 {[%clk 0:02:17.7]} 18.
Re3 {[%clk 0:02:34.7]} 18... Nc5 {[%clk 0:02:16.7]} 19. Qc4 {[%clk 0:02:34.5]}
19... a5 {[%clk 0:02:02.1]} 20. d4 {[%clk 0:02:27.1]} 20... Na6 {[%clk 0:02:01]}
21. Qxc6 {[%clk 0:02:22.1]} 21... Nb4 {[%clk 0:01:59.1]} 22. Qe4 {[%clk
0:02:21.6]} 22... Re8 {[%clk 0:01:51.3]} 23. a3 {[%clk 0:02:21]} 23... f5 {[%clk
0:01:51]} 24. Qb7 {[%clk 0:02:16.4]} 24... Re7 {[%clk 0:01:38.6]} 25. Qf3 {[%clk
0:02:10.7]} 25... Nxc2 {[%clk 0:01:38.5]} 26. Red3 {[%clk 0:02:04]} 26... b5
{[%clk 0:01:20]} 27. Nxb5 {[%clk 0:01:50.3]} 27... Rb8 {[%clk 0:01:13.6]} 28.
Nc3 {[%clk 0:01:32.9]} 28... Rxb2 {[%clk 0:01:12.7]} 29. d5 {[%clk 0:01:33.1]}
29... e5 {[%clk 0:01:11.7]} 30. d6 {[%clk 0:01:32.9]} 30... Rf7 {[%clk
0:01:02.1]} 31. Qd5 {[%clk 0:01:29.4]} 31... Nxa3 {[%clk 0:00:43.6]} 32. Qxe5
{[%clk 0:01:24.7]} 32... Nc4 {[%clk 0:00:21.1]} 33. Qd4 {[%clk 0:01:18.8]} 33...
Rb4 {[%clk 0:00:19.9]} 34. Nd5 {[%clk 0:01:16]} 34... Ra4 {[%clk 0:00:14.3]} 35.
Ne7+ {[%clk 0:01:07.6]} 35... Rxe7 {[%clk 0:00:12.3]} 36. dxe7 {[%clk
0:01:07.5]} 36... Qxe7 {[%clk 0:00:12.9]} 37. Qd8+ {[%clk 0:01:06.5]} 37... Qxd8
{[%clk 0:00:12.7]} 38. Rxd8+ {[%clk 0:01:06.9]} 38... Kg7 {[%clk 0:00:13.4]} 39.
R1d7+ {[%clk 0:01:06.2]} 39... Kh6 {[%clk 0:00:13.5]} 40. Rh8 {[%clk 0:01:06.7]}
40... Ne5 {[%clk 0:00:11.8]} 41. Rhxh7+ {[%clk 0:01:06.4]} 41... Kg5 {[%clk
0:00:12.3]} 42. Ra7 {[%clk 0:01:05.2]} 42... Ra1+ {[%clk 0:00:11.2]} 43. Kh2
{[%clk 0:01:05.1]} 43... Nd3 {[%clk 0:00:11.8]} 44. h4+ {[%clk 0:01:02.3]} 44...
Kf4 {[%clk 0:00:09.9]} 45. h5 {[%clk 0:00:54.2]} 45... Nxf2 {[%clk 0:00:09.7]}
46. g3+ {[%clk 0:00:53.1]} 46... Kf3 {[%clk 0:00:09.4]} 47. hxg6 {[%clk
0:00:48]} 47... Rh1# {[%clk 0:00:09.2]} 0-1

[Event "Late-Titled-Tuesday-Blitz-October-03-2023"]
[Site "Chess.com"]
[Date "2023.10.03"]
[Round "4"]
[White "Marasmus01"]
[Black "MajorCoast"]
[Result "1-0"]
[WhiteElo "2518"]
[BlackElo "2257"]
[TimeControl "180+1"]
[EndTime "14:38:15 PDT"]
[Termination "Marasmus01 won on time"]

1. c4 {[%clk 0:03:00.9]} 1... e6 {[%clk 0:02:58.1]} 2. g3 {[%clk 0:03:01.3]}
2... d5 {[%clk 0:02:58.6]} 3. Bg2 {[%clk 0:03:01.5]} 3... Nf6 {[%clk 0:02:59.2]}
4. e3 {[%clk 0:03:01.8]} 4... Be7 {[%clk 0:02:59.1]} 5. Ne2 {[%clk 0:03:02.3]}
5... O-O {[%clk 0:02:59.4]} 6. b3 {[%clk 0:03:02.7]} 6... c5 {[%clk 0:02:56.6]}
7. Bb2 {[%clk 0:03:02.7]} 7... Nc6 {[%clk 0:02:57.3]} 8. O-O {[%clk 0:03:01.6]}
8... d4 {[%clk 0:02:57.5]} 9. Na3 {[%clk 0:03:01.2]} 9... e5 {[%clk 0:02:52.2]}
10. h3 {[%clk 0:02:59.7]} 10... Bf5 {[%clk 0:02:43.1]} 11. f3 {[%clk 0:02:42.4]}
11... e4 {[%clk 0:02:22.5]} 12. fxe4 {[%clk 0:02:30.2]} 12... Bxe4 {[%clk
0:02:23.4]} 13. Bxe4 {[%clk 0:02:28.2]} 13... Nxe4 {[%clk 0:02:24.3]} 14. d3
{[%clk 0:02:28.4]} 14... Ng5 {[%clk 0:02:09.4]} 15. h4 {[%clk 0:02:23]} 15...
Ne6 {[%clk 0:02:00.9]} 16. e4 {[%clk 0:02:14.9]} 16... Ne5 {[%clk 0:01:53.2]}
17. Bc1 {[%clk 0:02:08.8]} 17... a5 {[%clk 0:01:13.8]} 18. Bf4 {[%clk
0:02:03.3]} 18... Bf6 {[%clk 0:01:06.2]} 19. Bxe5 {[%clk 0:01:54.2]} 19... Bxe5
{[%clk 0:01:07.1]} 20. Nb5 {[%clk 0:01:50]} 20... Nc7 {[%clk 0:01:00.5]} 21. a4
{[%clk 0:01:46.1]} 21... Ra6 {[%clk 0:00:57.6]} 22. Rf5 {[%clk 0:01:44.9]} 22...
Re6 {[%clk 0:00:39.4]} 23. Nf4 {[%clk 0:01:39.5]} 23... Bxf4 {[%clk 0:00:34.9]}
24. Rxf4 {[%clk 0:01:39.2]} 24... Nxb5 {[%clk 0:00:30.6]} 25. axb5 {[%clk
0:01:40.1]} 25... b6 {[%clk 0:00:30.9]} 26. Qf3 {[%clk 0:01:37.7]} 26... Qd6
{[%clk 0:00:27.4]} 27. Rf1 {[%clk 0:01:36.2]} 27... Rg6 {[%clk 0:00:23.6]} 28.
Kg2 {[%clk 0:01:33.6]} 28... f6 {[%clk 0:00:20.7]} 29. Rf5 {[%clk 0:01:22.6]}
29... Re8 {[%clk 0:00:18.6]} 30. Rd5 {[%clk 0:01:20.3]} 30... Qc7 {[%clk
0:00:15.9]} 31. h5 {[%clk 0:01:08.2]} 31... Rh6 {[%clk 0:00:11.8]} 32. Qf5
{[%clk 0:01:06.1]} 32... Re5 {[%clk 0:00:10.3]} 33. Rxe5 {[%clk 0:01:05.8]}
33... Qxe5 {[%clk 0:00:10.3]} 34. Qc8+ {[%clk 0:01:05]} 34... Kf7 {[%clk
0:00:09.9]} 35. Rf5 {[%clk 0:01:04.8]} 35... Qe6 {[%clk 0:00:07.3]} 36. Qc7+
{[%clk 0:01:03.2]} 36... Kf8 {[%clk 0:00:05.9]} 37. Rd5 {[%clk 0:01:00.1]} 37...
Qe7 {[%clk 0:00:02]} 38. Rd8+ {[%clk 0:00:59]} 38... Kf7 {[%clk 0:00:02]} 39.
Rd7 {[%clk 0:00:59.1]} 39... Qxd7 {[%clk 0:00:01.6]} 40. Qxd7+ {[%clk
0:00:58.9]} 40... Kf8 {[%clk 0:00:02.5]} 41. g4 {[%clk 0:00:58.3]} 1-0

[Event "Late-Titled-Tuesday-Blitz-October-03-2023"]
[Site "Chess.com"]
[Date "2023.10.03"]
[Round "4"]
[White "Fandorine"]
[Black "Hikaru"]
[Result "0-1"]
[WhiteElo "2940"]
[BlackElo "3273"]
[TimeControl "180+1"]
[EndTime "14:38:17 PDT"]
[Termination "Hikaru won by resignation"]

1. b3 {[%clk 0:03:00.8]} 1... a6 {[%clk 0:03:00.9]} 2. Bb2 {[%clk 0:03:00.7]}
2... c5 {[%clk 0:03:00.2]} 3. e4 {[%clk 0:02:59.9]} 3... Nc6 {[%clk 0:02:59.7]}
4. Nf3 {[%clk 0:02:58.9]} 4... Nf6 {[%clk 0:02:54.8]} 5. e5 {[%clk 0:02:53]}
5... Nd5 {[%clk 0:02:54.9]} 6. Bc4 {[%clk 0:02:52.6]} 6... Nb6 {[%clk
0:02:41.7]} 7. O-O {[%clk 0:02:42.5]} 7... Nxc4 {[%clk 0:02:31.7]} 8. bxc4
{[%clk 0:02:43.4]} 8... g6 {[%clk 0:02:32.2]} 9. d3 {[%clk 0:02:32.6]} 9... Bg7
{[%clk 0:02:32.2]} 10. Nbd2 {[%clk 0:02:33.2]} 10... d5 {[%clk 0:02:20.2]} 11.
h3 {[%clk 0:02:10.8]} 11... O-O {[%clk 0:02:16.4]} 12. Re1 {[%clk 0:02:10.9]}
12... b6 {[%clk 0:02:04]} 13. Rb1 {[%clk 0:02:05.1]} 13... Rb8 {[%clk
0:02:01.8]} 14. a4 {[%clk 0:02:04.5]} 14... h6 {[%clk 0:02:01.5]} 15. Ba1 {[%clk
0:01:55.2]} 15... dxc4 {[%clk 0:01:58.1]} 16. Nxc4 {[%clk 0:01:52.5]} 16... Be6
{[%clk 0:01:54.1]} 17. Ncd2 {[%clk 0:01:30.1]} 17... Qc7 {[%clk 0:01:43.9]} 18.
Qe2 {[%clk 0:01:05.5]} 18... Rfd8 {[%clk 0:01:41.9]} 19. c3 {[%clk 0:01:04.7]}
19... Bf5 {[%clk 0:01:36.6]} 20. Ne4 {[%clk 0:01:04.6]} 20... Nxe5 {[%clk
0:01:36.7]} 21. Nxe5 {[%clk 0:01:02.8]} 21... Bxe5 {[%clk 0:01:23.8]} 22. c4
{[%clk 0:00:20.5]} 22... Bxa1 {[%clk 0:01:19.1]} 23. Rxa1 {[%clk 0:00:21.4]}
23... Rd4 {[%clk 0:01:16.9]} 24. Nc3 {[%clk 0:00:12.8]} 24... Bxd3 {[%clk
0:01:16.4]} 25. Qe3 {[%clk 0:00:13.3]} 25... e6 {[%clk 0:00:47.2]} 26. a5 {[%clk
0:00:12.3]} 26... Qf4 {[%clk 0:00:37.8]} 27. axb6 {[%clk 0:00:12.5]} 27... Rxb6
{[%clk 0:00:38.6]} 28. Na4 {[%clk 0:00:12.1]} 28... Rc6 {[%clk 0:00:38.7]} 29.
Nb2 {[%clk 0:00:09.8]} 29... Bf5 {[%clk 0:00:34.3]} 30. Qb3 {[%clk 0:00:05.4]}
30... Rd2 {[%clk 0:00:31.8]} 31. Rf1 {[%clk 0:00:05.9]} 31... Rc8 {[%clk
0:00:29.9]} 32. Nd1 {[%clk 0:00:05.7]} 32... Bd3 {[%clk 0:00:25.2]} 33. Re1
{[%clk 0:00:03.4]} 33... Bxc4 {[%clk 0:00:22.8]} 34. Qb7 {[%clk 0:00:03.7]}
34... Rcd8 {[%clk 0:00:22.4]} 35. Qb6 {[%clk 0:00:01.9]} 35... Be2 {[%clk
0:00:19.4]} 36. Qxc5 {[%clk 0:00:02.2]} 36... Bxd1 {[%clk 0:00:19.2]} 0-1

[Event "Late-Titled-Tuesday-Blitz-October-03-2023"]
[Site "Chess.com"]
[Date "2023.10.03"]
[Round "4"]
[White "andjela_djidjika"]
[Black "Chempiblinka"]
[Result "0-1"]
[WhiteElo "1980"]
[BlackElo "2291"]
[TimeControl "180+1"]
[EndTime "14:38:17 PDT"]
[Termination "Chempiblinka won on time"]

1. e4 {[%clk 0:03:00.9]} 1... c5 {[%clk 0:03:00]} 2. Nf3 {[%clk 0:03:00.4]} 2...
Nc6 {[%clk 0:03:00.8]} 3. Bb5 {[%clk 0:03:00.4]} 3... e6 {[%clk 0:03:00.7]} 4.
Bxc6 {[%clk 0:03:00.3]} 4... bxc6 {[%clk 0:03:01.6]} 5. d3 {[%clk 0:03:00.1]}
5... Ne7 {[%clk 0:03:02.2]} 6. O-O {[%clk 0:03:00.1]} 6... Ng6 {[%clk
0:03:02.6]} 7. Be3 {[%clk 0:02:56.2]} 7... e5 {[%clk 0:03:01.1]} 8. c4 {[%clk
0:02:54.2]} 8... d6 {[%clk 0:03:01]} 9. Nc3 {[%clk 0:02:54]} 9... Be7 {[%clk
0:03:01.9]} 10. Ne2 {[%clk 0:02:29.2]} 10... O-O {[%clk 0:03:00.6]} 11. Ng3
{[%clk 0:02:28.9]} 11... Rb8 {[%clk 0:02:40]} 12. b3 {[%clk 0:02:27.4]} 12... d5
{[%clk 0:02:34.9]} 13. h3 {[%clk 0:02:15]} 13... d4 {[%clk 0:02:33]} 14. Bd2
{[%clk 0:02:12.9]} 14... Nh4 {[%clk 0:02:31.9]} 15. Nxe5 {[%clk 0:01:59]} 15...
Bd7 {[%clk 0:02:20.3]} 16. Nxd7 {[%clk 0:01:38.5]} 16... Qxd7 {[%clk 0:02:21.1]}
17. Qg4 {[%clk 0:01:38.3]} 17... f5 {[%clk 0:02:07.5]} 18. exf5 {[%clk
0:01:32.2]} 18... Nxf5 {[%clk 0:02:04]} 19. Nxf5 {[%clk 0:01:31.7]} 19... Rxf5
{[%clk 0:02:04.1]} 20. Rae1 {[%clk 0:01:23.9]} 20... Rbf8 {[%clk 0:02:03.3]} 21.
Bh6 {[%clk 0:01:04.3]} 21... Bd6 {[%clk 0:01:57.7]} 22. Bd2 {[%clk 0:00:54]}
22... Bc7 {[%clk 0:01:56.7]} 23. Re2 {[%clk 0:00:46]} 23... Qd6 {[%clk
0:01:56.6]} 24. f4 {[%clk 0:00:36.6]} 24... R5f6 {[%clk 0:01:49.6]} 25. Qh4
{[%clk 0:00:21.1]} 25... Rg6 {[%clk 0:01:45.9]} 26. Qe7 {[%clk 0:00:18.8]} 26...
a5 {[%clk 0:01:28.8]} 27. Qxd6 {[%clk 0:00:18.3]} 27... Bxd6 {[%clk 0:01:29.2]}
28. Kh2 {[%clk 0:00:17.2]} 28... a4 {[%clk 0:01:28.6]} 29. g3 {[%clk 0:00:17]}
29... axb3 {[%clk 0:01:28.2]} 30. axb3 {[%clk 0:00:17.9]} 30... Rb8 {[%clk
0:01:28.6]} 31. Rb1 {[%clk 0:00:17.1]} 31... Rf6 {[%clk 0:01:26.1]} 32. Be1
{[%clk 0:00:11.2]} 32... Rf7 {[%clk 0:01:26]} 33. Re6 {[%clk 0:00:11.4]} 33...
Rd7 {[%clk 0:01:25.7]} 34. Bd2 {[%clk 0:00:07.6]} 34... Kf7 {[%clk 0:01:26]} 35.
f5 {[%clk 0:00:07]} 35... g6 {[%clk 0:01:24.4]} 36. Re2 {[%clk 0:00:02.1]} 36...
gxf5 {[%clk 0:01:23.3]} 37. Rf1 {[%clk 0:00:02.8]} 37... Kg6 {[%clk 0:01:23.8]}
38. Kg2 {[%clk 0:00:02.6]} 38... Rxb3 {[%clk 0:01:23]} 39. Re6+ {[%clk
0:00:03.3]} 39... Kf7 {[%clk 0:01:23.4]} 40. Re2 {[%clk 0:00:02.6]} 40... Rxd3
{[%clk 0:01:20.1]} 41. Rxf5+ {[%clk 0:00:02.3]} 41... Kg6 {[%clk 0:01:21]} 42.
Rf3 {[%clk 0:00:01.8]} 42... Rxf3 {[%clk 0:01:19.5]} 43. Kxf3 {[%clk 0:00:02.7]}
43... Rf7+ {[%clk 0:01:20.4]} 44. Bf4 {[%clk 0:00:02.1]} 44... d3 {[%clk
0:01:17.6]} 45. Re6+ {[%clk 0:00:02.2]} 45... Kg7 {[%clk 0:01:16.9]} 46. Rxd6
{[%clk 0:00:02.2]} 46... Ra7 {[%clk 0:01:16.7]} 47. Rxd3 {[%clk 0:00:02.6]}
47... Ra2 {[%clk 0:01:17.6]} 48. Be5+ {[%clk 0:00:01.5]} 48... Kf7 {[%clk
0:01:18.2]} 49. Bd6 {[%clk 0:00:02]} 49... Rc2 {[%clk 0:01:18.2]} 50. Bxc5
{[%clk 0:00:01.9]} 50... Rxc4 {[%clk 0:01:19.1]} 51. Bd4 {[%clk 0:00:02.2]}
51... Ke6 {[%clk 0:01:20]} 52. Be3 {[%clk 0:00:01.6]} 52... c5 {[%clk
0:01:20.7]} 0-1